fUST/lending_fUST_20250609
["ID","MTS","AMOUNT","RATE_DAILY","PERIOD"]
[365115405,1749472243307,-440.0,0.00022191,4]
[365115406,1749472243314,-938.59,0.00022191,4]
[365115407,1749472243325,-440.0,0.00022191,4]
[365115408,1749472243333,-440.0,0.00022191,4]
[365115409,1749472243340,-440.0,0.00022191,4]
[365115410,1749472243349,-440.0,0.00022191,4]
[365115411,1749472243357,-155.82474859,0.00022191,4]
[365115412,1749472243365,-554.16392308,0.00022191,4]
[365115413,1749472243372,-440.08219242,0.00022191,4]
[365115414,1749472243381,-440.0,0.00022191,4]
[365115415,1749472243391,-440.0,0.00022191,4]
[365115416,1749472243400,-1098.78,0.00022191,4]
[365115417,1749472243410,-440.0,0.00022191,4]
[365115418,1749472243419,-1164.01,0.00022191,4]
[365115419,1749472243429,-720.23,0.00022191,4]
[365115421,1749472243438,-3419.96,0.00022191,4]
[365115423,1749472243448,-849.05,0.00022191,4]
[365115425,1749472243457,-440.0,0.00022191,4]
[365115427,1749472243467,-440.0,0.00022191,4]
[365115429,1749472243476,-440.0,0.00022191,4]
[365115430,1749472243486,-400.0,0.00022191,4]
[365115431,1749472243496,-440.0,0.00022191,4]
[365115432,1749472243505,-756.07,0.00022191,4]
[365115433,1749472243515,-440.0,0.00022191,4]
[365115434,1749472243525,-440.0,0.00022191,4]
[365115435,1749472243535,-497.9328961,0.00022191,4]
[365115436,1749472243544,-440.0,0.00022191,4]
[365115437,1749472243554,-440.0,0.00022191,4]
[365115438,1749472243563,-1560.73,0.00022191,4]
[365115439,1749472243572,-430.0,0.00022191,4]
[365115440,1749472243582,-961.23,0.00022191,4]
[365115441,1749472243591,-440.0,0.00022191,4]
[365115442,1749472243601,-1553.26,0.00022191,4]
[365115443,1749472243611,-440.0,0.00022191,4]
[365115444,1749472243621,-440.0,0.00022191,2]
[365115445,1749472243630,-440.0,0.00022191,4]
[365115446,1749472243640,-180.5115666,0.00022195,2]
[365115447,1749472243649,-904.15789809,0.0002221,6]
[365115448,1749472243658,-500.0,0.00022299,4]
[365115449,1749472243668,-15189.0,0.000223,2]
[365115450,1749472243678,-904.15789809,0.00022314,7]
[365115451,1749472243687,-904.15789809,0.00022417,7]
[365115452,1749472243697,-222.24,0.00022464,4]
[365115453,1749472243706,-440.0,0.00022465,4]
[365115454,1749472243716,-440.0,0.00022465,4]
[365115455,1749472243725,-440.0,0.00022465,4]
[365115456,1749472243735,-440.0,0.00022465,4]
[365115457,1749472243745,-390.0,0.00022465,4]
[365115458,1749472243755,-440.0,0.00022465,4]
[365115459,1749472243764,-440.0,0.00022465,4]
[365115460,1749472243774,-440.0,0.00022465,4]
[365115461,1749472243784,-440.0,0.00022465,4]
[365115462,1749472243794,-440.0,0.00022465,4]
[365115463,1749472243804,-461.15,0.00022465,4]
[365115464,1749472243814,-310.0,0.00022465,4]
[365115465,1749472243824,-440.0,0.00022465,4]
[365115466,1749472243834,-440.0,0.00022465,2]
[365115467,1749472243844,-400.0,0.00022465,4]
[365115468,1749472243853,-440.0,0.00022465,4]
[365115469,1749472243865,-331.85403252,0.00022465,4]
[365115470,1749472243875,-440.0,0.00022465,4]
[365115471,1749472243884,-1871.23,0.00022465,4]
[365115472,1749472243894,-2121.79,0.00022465,4]
[365115473,1749472243904,-440.0,0.00022465,4]
[365115474,1749472243914,-1588.35,0.00022465,4]
[365115475,1749472243923,-518.33692161,0.00022465,4]
[365115476,1749472243934,-2343.66,0.00022465,4]
[365115477,1749472243944,-440.0,0.00022465,4]
[365115478,1749472243954,-1853.64,0.00022465,4]
[365115479,1749472243964,-578.87,0.00022465,4]
[365115480,1749472243974,-440.0,0.00022465,4]
[365115481,1749472243983,-1898.46,0.00022465,4]
[365115482,1749472243994,-440.0,0.00022465,4]
[365115483,1749472244003,-499.92,0.00022465,4]
[365115484,1749472244012,-440.0,0.00022465,4]
[365115485,1749472244021,-1022.06,0.00022465,4]
[365115486,1749472244030,-440.0,0.00022465,4]
[365115487,1749472244042,-440.0,0.00022465,4]
[365115488,1749472244051,-574.51,0.00022465,4]
[365115489,1749472244061,-440.0,0.00022465,4]
[365115490,1749472244070,-938.59,0.00022465,4]
[365115491,1749472244080,-440.0,0.00022465,4]
[365115492,1749472244089,-440.0,0.00022465,4]
[365115493,1749472244099,-440.0,0.00022465,4]
[365115494,1749472244108,-440.0,0.00022465,4]
[365115495,1749472244117,-440.0,0.00022465,4]
[365115496,1749472244126,-440.0,0.00022465,4]
[365115497,1749472244136,-1098.78,0.00022465,4]
[365115498,1749472244146,-555.00691686,0.00022465,4]
[365115499,1749472244155,-1164.01,0.00022465,4]
[365115500,1749472244165,-720.23,0.00022465,4]
[365115501,1749472244174,-3419.96,0.00022465,4]
[365115502,1749472244183,-849.05,0.00022465,4]
[365115503,1749472244193,-440.0,0.00022465,4]
[365115504,1749472244203,-440.0,0.00022465,4]
[365115505,1749472244212,-440.0,0.00022465,4]
[365115506,1749472244222,-440.0,0.00022465,4]
[365115507,1749472244231,-756.07,0.00022465,4]
[365115508,1749472244240,-440.0,0.00022465,4]
[365115509,1749472244250,-440.0,0.00022465,4]
[365115510,1749472244259,-440.0,0.00022465,4]
[365115511,1749472244269,-440.0,0.00022465,4]
[365115512,1749472244280,-1560.73,0.00022465,4]
[365115513,1749472244290,-961.23,0.00022465,4]
[365115514,1749472244300,-440.0,0.00022465,4]
[365115515,1749472244310,-1553.26,0.00022465,4]
[365115516,1749472244320,-440.0,0.00022465,4]
[365115517,1749472244329,-440.0,0.00022465,2]
[365115518,1749472244339,-585.15538902,0.00022509,2]
[365115519,1749472244348,-500.0,0.00022509,2]
[365115520,1749472244358,-542.82826175,0.00022521,2]
[365115521,1749472244368,-904.15789809,0.00022521,7]
[365115522,1749472244378,-675.59829239,0.0002255,2]
[365115523,1749472244388,-180.5115666,0.00022582,2]
[365115524,1749472244398,-159.96257319,0.00022603,2]
[365115525,1749472244408,-904.15789809,0.00022624,7]
[365115526,1749472244417,-521.35746861,0.00022666,2]
[365115527,1749472244427,-904.15789809,0.00022728,7]
[365115528,1749472244437,-522.73462613,0.00022739,4]
[365115529,1749472244446,-477.21448293,0.00022739,4]
[365115530,1749472244456,-440.0,0.00022739,4]
[365115531,1749472244466,-440.0,0.00022739,4]
[365115532,1749472244476,-340.0,0.00022739,4]
[365115533,1749472244485,-538.64,0.00022739,4]
[365115534,1749472244495,-440.0,0.00022739,4]
[365115535,1749472244504,-440.0,0.00022739,4]
[365115536,1749472244514,-447.19774906,0.00022739,4]
[365115537,1749472244524,-440.0,0.00022739,4]
[365115538,1749472244533,-440.0,0.00022739,2]
[365115539,1749472244544,-440.0,0.00022739,4]
[365115540,1749472244553,-440.0,0.00022739,4]
[365115541,1749472244563,-1871.23,0.00022739,4]
[365115542,1749472244572,-2121.79,0.00022739,4]
[365115543,1749472244582,-440.0,0.00022739,4]
[365115544,1749472244592,-1588.35,0.00022739,4]
[365115545,1749472244601,-2343.66,0.00022739,4]
[365115546,1749472244611,-440.0,0.00022739,4]
[365115547,1749472244621,-1853.64,0.00022739,4]
[365115548,1749472244631,-578.87,0.00022739,4]
[365115549,1749472244640,-440.0,0.00022739,4]
[365115550,1749472244650,-1898.46,0.00022739,4]
[365115551,1749472244659,-440.0,0.00022739,4]
[365115552,1749472244669,-499.92,0.00022739,4]
[365115553,1749472244678,-440.0,0.00022739,4]
[365115554,1749472244688,-1022.06,0.00022739,4]
[365115555,1749472244697,-440.0,0.00022739,4]
[365115556,1749472244707,-440.0,0.00022739,4]
[365115557,1749472244717,-574.51,0.00022739,4]
[365115558,1749472244727,-440.0,0.00022739,4]
[365115559,1749472244736,-938.59,0.00022739,4]
[365115560,1749472244746,-440.0,0.00022739,4]
[365115561,1749472244756,-440.0,0.00022739,4]
[365115562,1749472244766,-440.0,0.00022739,4]
[365115563,1749472244776,-440.0,0.00022739,4]
[365115564,1749472244788,-440.0,0.00022739,4]
[365115565,1749472244798,-1098.78,0.00022739,4]
[365115566,1749472244808,-1164.01,0.00022739,4]
[365115567,1749472244818,-720.23,0.00022739,4]
[365115568,1749472244828,-3419.96,0.00022739,4]
[365115569,1749472244839,-849.05,0.00022739,4]
[365115570,1749472244850,-440.0,0.00022739,4]
[365115571,1749472244862,-440.0,0.00022739,4]
[365115572,1749472244871,-420.0,0.00022739,4]
[365115573,1749472244881,-756.07,0.00022739,4]
[365115574,1749472244890,-440.0,0.00022739,4]
[365115575,1749472244900,-440.0,0.00022739,4]
[365115576,1749472244910,-440.0,0.00022739,4]
[365115577,1749472244919,-440.0,0.00022739,4]
[365115578,1749472244928,-420.0,0.00022739,2]
[365115579,1749472244939,-1560.73,0.00022739,4]
[365115580,1749472244949,-961.23,0.00022739,4]
[365115581,1749472244959,-440.0,0.00022739,4]
[365115582,1749472244970,-1553.26,0.00022739,4]
[365115583,1749472244982,-440.0,0.00022739,4]
[365115584,1749472244994,-332.003201,0.00022739,2]
[365115585,1749472245004,-159.96257319,0.00022767,2]
[365115586,1749472245014,-207.4,0.00022782,2]
[365115587,1749472245025,-710.37,0.000228,7]
[365115588,1749472245035,-904.15789809,0.00022831,8]
[365115589,1749472245045,-159.96257319,0.00022932,2]
[365115590,1749472245055,-904.15789809,0.00022934,8]
[365115591,1749472245065,-180.5115666,0.0002297,2]
[365115592,1749472245074,-440.0,0.00023013,4]
[365115593,1749472245084,-343.12071737,0.00023013,4]
[365115594,1749472245095,-440.0,0.00023013,4]
[365115595,1749472245106,-440.0,0.00023013,4]
[365115596,1749472245116,-387.96,0.00023013,4]
[365115597,1749472245126,-440.0,0.00023013,2]
[365115598,1749472245136,-440.0,0.00023013,4]
[365115599,1749472245146,-440.0,0.00023013,4]
[365115600,1749472245156,-1871.23,0.00023013,4]
[365115601,1749472245165,-2121.79,0.00023013,4]
[365115602,1749472245174,-413.2271762,0.00023013,4]
[365115603,1749472245183,-1588.35,0.00023013,4]
[365115604,1749472245193,-2343.66,0.00023013,4]
[365115605,1749472245202,-440.0,0.00023013,4]
[365115606,1749472245212,-1853.64,0.00023013,4]
[365115607,1749472245221,-578.87,0.00023013,4]
[365115608,1749472245230,-440.0,0.00023013,4]
[365115609,1749472245240,-1898.46,0.00023013,4]
[365115610,1749472245249,-440.0,0.00023013,4]
[365115611,1749472245259,-499.92,0.00023013,4]
[365115612,1749472245268,-440.0,0.00023013,4]
[365115613,1749472245277,-1022.06,0.00023013,4]
[365115614,1749472245287,-440.0,0.00023013,4]
[365115615,1749472245296,-440.0,0.00023013,4]
[365115616,1749472245305,-574.51,0.00023013,4]
[365115617,1749472245314,-440.0,0.00023013,4]
[365115618,1749472245324,-938.59,0.00023013,4]
[365115619,1749472245333,-495.32301997,0.00023013,4]
[365115620,1749472245343,-440.0,0.00023013,4]
[365115621,1749472245352,-440.0,0.00023013,4]
[365115622,1749472245362,-184.92441442,0.00023013,4]
[365115623,1749472245372,-440.0,0.00023013,4]
[365115624,1749472245381,-1098.78,0.00023013,4]
[365115625,1749472245390,-1164.01,0.00023013,4]
[365115626,1749472245400,-720.23,0.00023013,4]
[365115627,1749472245409,-3419.96,0.00023013,4]
[365115628,1749472245419,-849.05,0.00023013,4]
[365115629,1749472245428,-440.0,0.00023013,4]
[365115630,1749472245438,-440.0,0.00023013,4]
[365115631,1749472245447,-756.07,0.00023013,4]
[365115632,1749472245457,-440.0,0.00023013,4]
[365115633,1749472245467,-440.0,0.00023013,4]
[365115634,1749472245476,-440.0,0.00023013,4]
[365115635,1749472245486,-440.0,0.00023013,4]
[365115636,1749472245495,-1560.73,0.00023013,4]
[365115637,1749472245505,-961.23,0.00023013,4]
[365115638,1749472245515,-440.0,0.00023013,4]
[365115639,1749472245525,-1553.26,0.00023013,4]
[365115640,1749472245534,-440.0,0.00023013,4]
[365115641,1749472245544,-904.15789809,0.00023038,8]
[365115642,1749472245554,-227.42880251,0.00023046,2]
[365115643,1749472245563,-159.96257319,0.00023096,2]
[365115644,1749472245573,-2001.96560727,0.000231,7]
[365115645,1749472245582,-500.0,0.0002314,2]
[365115646,1749472245690,-904.15789809,0.00023141,8]
[365115647,1749472245700,-505.69346178,0.00023164,2]
[365115648,1749472245709,-505.78867747,0.00023164,2]
[365115649,1749472245719,-904.15789809,0.00023245,8]
[365115650,1749472245728,-430.0,0.00023287,4]
[365115651,1749472245738,-440.0,0.00023287,4]
[365115652,1749472245747,-440.0,0.00023287,4]
[365115653,1749472245757,-440.0,0.00023287,2]
[365115654,1749472245766,-440.0,0.00023287,4]
[365115655,1749472245776,-440.0,0.00023287,4]
[365115656,1749472245785,-1871.23,0.00023287,4]
[365115657,1749472245795,-2121.79,0.00023287,4]
[365115658,1749472245804,-1588.35,0.00023287,4]
[365115659,1749472245813,-2343.66,0.00023287,4]
[365115660,1749472245823,-440.0,0.00023287,4]
[365115661,1749472245833,-1853.64,0.00023287,4]
[365115662,1749472245843,-578.87,0.00023287,4]
[365115663,1749472245852,-440.0,0.00023287,4]
[365115664,1749472245862,-1898.46,0.00023287,4]
[365115665,1749472245874,-440.0,0.00023287,4]
[365115666,1749472245884,-499.92,0.00023287,4]
[365115667,1749472245894,-440.0,0.00023287,4]
[365115669,1749472245903,-1022.06,0.00023287,4]
[365115670,1749472245913,-267.31550322,0.00023287,4]
[365115671,1749472245924,-440.0,0.00023287,4]
[365115672,1749472245935,-574.51,0.00023287,4]
[365115673,1749472245945,-440.0,0.00023287,4]
[365115674,1749472245956,-938.59,0.00023287,4]
[365115677,1749472245971,-440.0,0.00023287,4]
[365115678,1749472245987,-440.0,0.00023287,4]
[365115680,1749472245997,-440.0,0.00023287,4]
[365115682,1749472246007,-1098.78,0.00023287,4]
[365115684,1749472246017,-1164.01,0.00023287,4]
[365115685,1749472246027,-720.23,0.00023287,4]
[365115686,1749472246036,-3419.96,0.00023287,4]
[365115687,1749472246046,-849.05,0.00023287,4]
[365115688,1749472246055,-440.0,0.00023287,4]
[365115689,1749472246065,-440.0,0.00023287,4]
[365115691,1749472246074,-756.07,0.00023287,4]
[365115693,1749472246083,-525.76897121,0.00023287,4]
[365115695,1749472246093,-440.0,0.00023287,4]
[365115696,1749472246102,-440.0,0.00023287,4]
[365115697,1749472246111,-440.0,0.00023287,4]
[365115698,1749472246121,-1560.73,0.00023287,4]
[365115699,1749472246131,-961.23,0.00023287,4]
[365115700,1749472246141,-440.0,0.00023287,4]
[365115701,1749472246150,-1553.26,0.00023287,4]
[365115702,1749472246160,-440.0,0.00023287,4]
[365115704,1749472246169,-159.96257319,0.00023288,2]
[365115705,1749472246179,-405.0,0.00023319,2]
[365115706,1749472246189,-963.0,0.00023319,2]
[365115707,1749472246198,-904.15789809,0.00023348,9]
[365115708,1749472246208,-180.5115666,0.00023357,2]
[365115709,1749472246217,-156.0,0.000234,2]
[365115710,1749472246227,-904.15789809,0.00023452,9]
[365115711,1749472246237,-159.96257319,0.00023452,2]
[365115712,1749472246247,-334090.8875,0.00023499,2]
[365115713,1749472246257,-10008.19424695,0.000235,2]
[365115714,1749472246267,-776.142129,0.0002352,3]
[365115715,1749472246276,-904.15789809,0.00023555,9]
[365115716,1749472246286,-301.31518669,0.0002356,2]
[365115717,1749472246296,-440.0,0.00023561,4]
[365115718,1749472246306,-440.0,0.00023561,4]
[365115719,1749472246316,-440.0,0.00023561,2]
[365115720,1749472246326,-440.0,0.00023561,4]
[365115721,1749472246336,-440.0,0.00023561,4]
[365115722,1749472246345,-1871.23,0.00023561,4]
[365115723,1749472246355,-2121.79,0.00023561,4]
[365115724,1749472246364,-1588.35,0.00023561,4]
[365115725,1749472246373,-2343.66,0.00023561,4]
[365115726,1749472246382,-440.0,0.00023561,4]
[365115727,1749472246392,-1853.64,0.00023561,4]
[365115728,1749472246404,-578.87,0.00023561,4]
[365115729,1749472246414,-440.0,0.00023561,4]
[365115730,1749472246423,-1898.46,0.00023561,4]
[365115731,1749472246432,-440.0,0.00023561,4]
[365115732,1749472246441,-499.92,0.00023561,4]
[365115733,1749472246451,-440.0,0.00023561,4]
[365115734,1749472246460,-1022.06,0.00023561,4]
[365115735,1749472246469,-440.0,0.00023561,4]
[365115736,1749472246478,-574.51,0.00023561,4]
[365115738,1749472246488,-440.0,0.00023561,4]
[365115739,1749472246497,-938.59,0.00023561,4]
[365115740,1749472246505,-440.0,0.00023561,4]
[365115741,1749472246514,-440.0,0.00023561,4]
[365115742,1749472246523,-440.0,0.00023561,4]
[365115743,1749472246532,-1098.78,0.00023561,4]
[365115744,1749472246542,-1164.01,0.00023561,4]
[365115745,1749472246550,-720.23,0.00023561,4]
[365115746,1749472246560,-3419.96,0.00023561,4]
[365115747,1749472246569,-849.05,0.00023561,4]
[365115748,1749472246578,-440.0,0.00023561,4]
[365115749,1749472246587,-440.0,0.00023561,4]
[365115750,1749472246596,-756.07,0.00023561,4]
[365115751,1749472246606,-440.0,0.00023561,4]
[365115752,1749472246615,-440.0,0.00023561,4]
[365115753,1749472246624,-440.0,0.00023561,4]
[365115754,1749472246634,-1560.73,0.00023561,4]
[365115755,1749472246643,-961.23,0.00023561,4]
[365115756,1749472246652,-440.0,0.00023561,4]
[365115757,1749472246662,-1553.26,0.00023561,4]
[365115758,1749472246671,-440.0,0.00023561,4]
[365115759,1749472246680,-159.96257319,0.00023616,2]
[365115760,1749472246689,-904.15789809,0.00023659,9]
[365115761,1749472246698,-91716.88035348,0.00023687,2]
[365115762,1749472246707,-180.5115666,0.00023745,2]
[365115763,1749472246716,-904.15789809,0.00023762,9]
[365115764,1749472246726,-159.96257319,0.00023781,2]
[365115765,1749472246735,-27090.11859803,0.000238,3]
[365115766,1749472246744,-834.7738823,0.000238,3]
[365115767,1749472246753,-213.08899333,0.000238,3]
[365115768,1749472246762,-440.0,0.00023835,4]
[365115769,1749472246771,-440.0,0.00023835,4]
[365115770,1749472246780,-440.0,0.00023835,2]
[365115771,1749472246789,-440.0,0.00023835,4]
[365115772,1749472246798,-440.0,0.00023835,4]
[365115773,1749472246807,-1871.23,0.00023835,4]
[365115774,1749472246816,-2121.79,0.00023835,4]
[365115775,1749472246825,-1588.35,0.00023835,4]
[365115776,1749472246834,-2343.66,0.00023835,4]
[365115777,1749472246843,-440.0,0.00023835,4]
[365115778,1749472246852,-1853.64,0.00023835,4]
[365115779,1749472246862,-578.87,0.00023835,4]
[365115780,1749472246872,-440.0,0.00023835,4]
[365115781,1749472246881,-1898.46,0.00023835,4]
[365115782,1749472246890,-440.0,0.00023835,4]
[365115783,1749472246899,-499.92,0.00023835,4]
[365115784,1749472246910,-440.0,0.00023835,4]
[365115785,1749472246920,-1022.06,0.00023835,4]
[365115786,1749472246930,-440.0,0.00023835,4]
[365115787,1749472246944,-574.51,0.00023835,4]
[365115788,1749472246953,-440.0,0.00023835,4]
[365115789,1749472246962,-938.59,0.00023835,4]
[365115790,1749472246971,-440.0,0.00023835,4]
[365115791,1749472246980,-440.0,0.00023835,4]
[365115792,1749472246989,-440.0,0.00023835,4]
[365115793,1749472246998,-1098.78,0.00023835,4]
[365115794,1749472247007,-1164.01,0.00023835,4]
[365115795,1749472247015,-720.23,0.00023835,4]
[365115796,1749472247025,-3419.96,0.00023835,4]
[365115797,1749472247034,-849.05,0.00023835,4]
[365115798,1749472247043,-440.0,0.00023835,4]
[365115799,1749472247052,-440.0,0.00023835,4]
[365115800,1749472247061,-756.07,0.00023835,4]
[365115801,1749472247070,-440.0,0.00023835,4]
[365115802,1749472247080,-440.0,0.00023835,4]
[365115803,1749472247089,-440.0,0.00023835,4]
[365115804,1749472247098,-1560.73,0.00023835,4]
[365115805,1749472247107,-961.23,0.00023835,4]
[365115806,1749472247117,-440.0,0.00023835,4]
[365115807,1749472247126,-1553.26,0.00023835,4]
[365115808,1749472247136,-440.0,0.00023835,4]
[365115809,1749472247146,-904.15789809,0.00023866,10]
[365115810,1749472247155,-710.37,0.000239,7]
[365115811,1749472247164,-273.4,0.000239,2]
[365115812,1749472247174,-273.4,0.000239,2]
[365115813,1749472247184,-151.0,0.000239,8]
[365115814,1749472247194,-181.87007568,0.000239,2]
[365115815,1749472247203,-250.0,0.0002394,2]
[365115816,1749472247213,-904.15789809,0.00023969,10]
[365115817,1749472247222,-500.0,0.00023973,2]
[365115818,1749472247232,-500.0,0.00023973,2]
[365115819,1749472247241,-500.0,0.00023973,2]
[365115820,1749472247251,-514.54290009,0.00023973,2]
[365115821,1749472247260,-500.0,0.00023973,2]
[365115822,1749472247270,-500.0,0.00023973,2]
[365115823,1749472247279,-500.0,0.00023973,2]
[365115824,1749472247288,-500.0,0.00023973,2]
[365115825,1749472247298,-600.0,0.00023973,2]
[365115826,1749472247307,-500.0,0.00023973,2]
[365115827,1749472247316,-501.69412432,0.00023973,2]
[365115828,1749472247325,-500.0,0.00023973,2]
[365115829,1749472247335,-500.0,0.00023973,2]
[365115830,1749472247344,-500.0,0.00023973,2]
[365115831,1749472247354,-143033.13151964,0.00024,2]
[365115832,1749472247601,-500.0,0.00021917,4]
[365115833,1749472247611,-500.0,0.00021917,4]
[365115834,1749472247620,-277.06605598,0.00024,2]
[365115837,1749472606833,394.60239909,0.00024657,120]
[365115838,1749472715533,163.239598,0.00013699,2]
[365115915,1749473432576,-1600.0,0.00020817,2]
[365115916,1749473432586,-589.3,0.00020842,2]
[365115918,1749473432596,-4730.7872374,0.00020917,2]
[365115920,1749473432605,-151.83197222,0.00021817,2]
[365115922,1749473432615,-3217.16699959,0.00021857,2]
[365115924,1749473432625,-999.33516116,0.000219,6]
[365115926,1749473432634,-300.0,0.00021906,2]
[365115927,1749473432644,-938.99,0.00021907,3]
[365115939,1749473432765,-469.49,0.00021907,3]
[365115941,1749473432775,-234.75,0.00021907,3]
[365115943,1749473432785,-704.26,0.00021907,3]
[365115946,1749473432795,-500.0,0.00021916,2]
[365115948,1749473432805,-181.8462112,0.00021916,2]
[365115950,1749473432815,-500.0,0.00021916,2]
[365115952,1749473432824,-259.64767489,0.00021916,2]
[365115954,1749473432834,-500.0,0.00021916,2]
[365115956,1749473432844,-500.0,0.00021916,2]
[365115958,1749473432854,-309.01029003,0.00021916,2]
[365115960,1749473432864,-152.72325413,0.00021916,2]
[365115963,1749473432883,-593.47008148,0.00021916,2]
[365115965,1749473432896,-500.0,0.00021916,2]
[365115967,1749473432907,-301.31518669,0.00021916,2]
[365115969,1749473432918,-500.0,0.00021917,4]
[365115971,1749473432928,-420.98069705,0.00021917,4]
[365115973,1749473432938,-430.0,0.00021917,4]
[365115975,1749473432949,-440.0,0.00021917,4]
[365115976,1749473432959,-431.4009782,0.00021917,4]
[365115977,1749473432969,-440.0,0.00021917,4]
[365115978,1749473432980,-440.0,0.00021917,4]
[365115979,1749473432990,-440.0,0.00021917,4]
[365115980,1749473433001,-373.78152864,0.00021917,4]
[365115981,1749473433010,-430.0,0.00021917,4]
[365115982,1749473433022,-430.0,0.00021917,4]
[365115983,1749473433032,-430.0,0.00021917,4]
[365115984,1749473433044,-440.0,0.00021917,4]
[365115985,1749473433054,-578.48803937,0.00021917,4]
[365115986,1749473433065,-430.0,0.00021917,4]
[365115987,1749473433075,-440.0,0.00021917,4]
[365115988,1749473433086,-440.0,0.00021917,4]
[365115989,1749473433096,-430.0,0.00021917,4]
[365115990,1749473433106,-430.0,0.00021917,4]
[365115991,1749473433117,-430.0,0.00021917,4]
[365115992,1749473433127,-430.0,0.00021917,4]
[365115993,1749473433138,-430.0,0.00021917,4]
[365115994,1749473433148,-430.0,0.00021917,4]
[365115995,1749473433159,-430.0,0.00021917,4]
[365115996,1749473433170,-430.0,0.00021917,4]
[365115997,1749473433180,-430.0,0.00021917,4]
[365115998,1749473433189,-431.3064589,0.00021917,4]
[365115999,1749473433199,-440.0,0.00021917,4]
[365116000,1749473433210,-523.32062848,0.00021917,4]
[365116001,1749473433220,-440.0,0.00021917,4]
[365116002,1749473433230,-440.0,0.00021917,4]
[365116003,1749473433240,-440.0,0.00021917,4]
[365116004,1749473433252,-440.0,0.00021917,4]
[365116005,1749473433263,-440.0,0.00021917,4]
[365116006,1749473433273,-425.58119401,0.00021917,4]
[365116007,1749473433283,-430.0,0.00021917,4]
[365116008,1749473433295,-440.0,0.00021917,4]
[365116009,1749473433306,-440.0,0.00021917,4]
[365116010,1749473433316,-440.0,0.00021917,4]
[365116011,1749473433326,-573.79463587,0.00021917,4]
[365116012,1749473433336,-440.0,0.00021917,4]
[365116013,1749473433347,-440.0,0.00021917,4]
[365116014,1749473433358,-440.0,0.00021917,4]
[365116015,1749473433368,-440.0,0.00021917,4]
[365116016,1749473433379,-440.0,0.00021917,4]
[365116017,1749473433390,-440.0,0.00021917,4]
[365116018,1749473433400,-440.0,0.00021917,4]
[365116019,1749473433410,-440.0,0.00021917,4]
[365116020,1749473433420,-440.0,0.00021917,4]
[365116021,1749473433430,-431.06439751,0.00021917,4]
[365116022,1749473433440,-440.0,0.00021917,4]
[365116023,1749473433450,-440.0,0.00021917,4]
[365116024,1749473433461,-201.29032228,0.00021917,2]
[365116025,1749473433471,-503.55016483,0.00021917,4]
[365116026,1749473433481,-440.0,0.00021917,4]
[365116027,1749473433492,-440.0,0.00021917,4]
[365116028,1749473433503,-440.0,0.00021917,4]
[365116029,1749473433514,-231.349,0.00021917,2]
[365116030,1749473433523,-440.0,0.00021917,4]
[365116031,1749473433534,-431.34693505,0.00021917,4]
[365116032,1749473433544,-440.0,0.00021917,4]
[365116033,1749473433555,-220.0,0.00021917,4]